Cogmind - Beta 13 @@@ ROGUE MODE // 2024.04.03 @ 01:49:48 Player: Bean Result: Self-destructed Performance ------------- Evolutions (2) 1000 Regions Visited (5) 1000 Robots Destroyed (12) 60 Value Destroyed (213) 213 Prototype IDs (5) 100 Alien Tech Used (0) 0 Bonus (300) 300 TOTAL SCORE: 2673 Bonus ------- Aligned with FarCom 300 Cogmind --------- Core Integrity 503/550 Matter 234/300 Energy 27/100 System Corruption 6% Temperature Cool (0) Movement Walking (125) Location -8/Materials Parts ------- > --- POWER (1) -------- (None) > --- PROPULSION (2) --- Aluminum Leg Titanium Leg > --- UTILITY (6) ------ Small Storage Unit Improved Light Armor Plating Skeleton Box Trap Reconfigurator > --- WEAPON (2) ------- EM Pulse Cannon > --- INVENTORY (8) ---- Nuclear Core Fission Core Light Fission Core Mining Laser Peak State ------------ > --- POWER ------------ (None) > --- PROPULSION ------- Titanium Leg > --- UTILITY ---------- Small Storage Unit Skeleton Box Trap Reconfigurator Decoy Drone Bay > --- WEAPON ----------- Heavy EM Shotgun Ion Cannon > --- INVENTORY -------- Nuclear Core Fission Core Light Fission Core Mining Laser [Rating: 41] Favorites ----------- Power Light Nuclear Core Engine Light Ion Engine Power Core Light Nuclear Core Propulsion Aluminum Leg Leg Aluminum Leg Utility Small Storage Unit Device Decoy Drone Bay Storage Small Storage Unit Protection Improved Light Armor Plating Weapon Light Assault Rifle Energy Gun Heavy EM Shotgun Energy Cannon Latent Energy Streamer Ballistic Gun Light Assault Rifle Special Weapon Mining Laser Build | -11 -10 -10 -10 -9 -8 ------- Run | Yrd Mat Min Exi Min Mat Slots Evolved 4 | . . . . . 4 Power . | . . . . . . Propulsion . | . . . . . . Utility 4 | . . . . . 4 Weapon . | . . . . . . Parts Attached 30 | 6 7 3 4 1 9 Power 4 | 1 3 . . . . Engine 3 | 1 2 . . . . Core 1 | . 1 . . . . Reactor . | . . . . . . Propulsion 6 | 2 1 1 . . 2 Treads . | . . . . . . Leg 6 | 2 1 1 . . 2 Wheel . | . . . . . . Hover . | . . . . . . Flight . | . . . . . . Utility 8 | 1 . 1 3 . 3 Device 5 | . . 1 2 . 2 Storage 2 | 1 . . 1 . . Processor . | . . . . . . Hackware . | . . . . . . Protection 1 | . . . . . 1 Artifact . | . . . . . . Weapon 12 | 2 3 1 1 1 4 Energy Gun 1 | . . . . . 1 Energy Cannon 4 | . . . 1 1 2 Ballistic Gun 6 | 2 3 1 . . . Ballistic Cannon . | . . . . . . Launcher . | . . . . . . Special Weapon 1 | . . . . . 1 Impact Weapon . | . . . . . . Slashing Weapon . | . . . . . . Piercing Weapon . | . . . . . . Special Melee Weapon . | . . . . . . Unidentified Prototypes 5 | . . 1 3 . 1 Parts Lost 6 | . . . . 4 2 Power 1 | . . . . 1 . Propulsion 2 | . . . . 2 . Utility 1 | . . . . . 1 Weapon 2 | . . . . 1 1 Highest Loss Streak 4 | . . . . 4 2 To Critical Strikes 1 | . . . . . 1 Average Slot Usage (%) 81 | . 85 85 88 97 54 Engine 1 | . 10 . . . . Core 9 | . 3 14 14 13 . Leg 23 | . 28 28 28 27 7 Device 13 | . . 5 13 14 26 Storage 7 | . 14 8 3 14 9 Energy Cannon 5 | . . . 3 22 8 Ballistic Gun 18 | . 28 28 24 4 . Naked Turns . | . . . . . . Heaviest Build 31 | 10 12 21 23 26 31 Greatest Support 27 | 20 20 20 20 20 27 Greatest Overweight (x) 9 | . . 1 1 3 9 Average Overweight (x) . | . . . . 1 2 Largest Inventory Capacity 8 | 8 8 8 8 8 8 Average Capacity 6 | 7 8 6 5 8 8 Most Carried 8 | 4 2 4 8 8 6 Average Carried 3 | . . 1 5 7 4 Final Capacity 8 | 8 8 5 8 8 8 Final Carried 7 | . 1 2 7 7 4 Class Distribution -------------------- 100% | Mutant Dominant Class ---------------- Mutant | -10/Materials Mutant | -10/Mines Mutant | -10/Exiles Mutant | -9/Mines Mutant | -8/Materials Resources | -11 -10 -10 -10 -9 -8 ----------- Run | Yrd Mat Min Exi Min Mat Matter Collected 482 | 260 118 20 . 28 56 Remotely . | . . . . . . Salvage Created 281 | . 195 30 . . 56 Parts 22 | . 19 2 . . 1 Haulers Intercepted . | . . . . . . Recyclers Shooed . | . . . . . . Parts Field Recycled . | . . . . . . Retrieved Matter . | . . . . . . Parts Self-Destructed . | . . . . . . Prevented . | . . . . . . Kills | -11 -10 -10 -10 -9 -8 ------- Run | Yrd Mat Min Exi Min Mat Combat Hostiles Destroyed 11 | . 8 2 . . 1 Guns 10 | . 8 2 . . . Cannons 1 | . . . . . 1 Classes Destroyed 3 | . 3 . . . . Builder 1 | . 1 . . . . Swarmer 8 | . 6 2 . . . Grunt 3 | . 2 . . . 1 Best Kill Streak 4 | . 4 2 . . 1 Combat Bots Only 3 | . 3 2 . . 1 Max Kills in Single Turn 2 | . 2 1 . . 1 Gunslinging . | . . . . . . Exploded . | . . . . . . Melee . | . . . . . . Uniques/NPCs Destroyed . | . . . . . . Combat | -11 -10 -10 -10 -9 -8 -------- Run | Yrd Mat Min Exi Min Mat Hostile Shots Fired 147 | . 59 15 . 24 49 Missed 42 | . 18 4 . 8 12 Damage Taken 1437 | . 411 86 . 329 611 Core 296 | . 131 55 . 63 47 Absorbed by Shields . | . . . . . . Core Remaining (%) 50 | 100 . . . . . Volleys Fired 41 | . 24 5 . . 12 Largest 2 | . 2 2 . . 1 Hottest 60 | . 40 40 . . 60 Shots Fired 70 | . 48 10 . . 12 Gun 58 | . 48 10 . . . Cannon 12 | . . . . . 12 Launcher . | . . . . . . Special . | . . . . . . Kinetic 58 | . 48 10 . . . Thermal 12 | . . . . . 12 Explosive . | . . . . . . Electromagnetic . | . . . . . . Robot Hit Streak 12 | . 12 1 . . 5 Robot Miss Streak 4 | . 3 4 . . 1 Penetration Max . | . . . . . . Secondary Targets 3 | . 3 . . . . Max Gunslinging Chain 1 | . 1 . . . . Shots Hit Robots 41 | . 29 3 . . 9 Core Hits 22 | . 17 2 . . 3 Critical Kills . | . . . . . . Critical Parts Destroyed . | . . . . . . Critical Strikes . | . . . . . . Melee Attacks . | . . . . . . Impact . | . . . . . . Slashing . | . . . . . . Piercing . | . . . . . . Sneak Attacks . | . . . . . . Combat Hostiles . | . . . . . . Follow-up Attacks . | . . . . . . Damage Inflicted 515 | . 274 34 . . 207 Guns 308 | . 274 34 . . . Cannons 207 | . . . . . 207 Explosions . | . . . . . . Melee . | . . . . . . Ramming . | . . . . . . Kinetic 308 | . 274 34 . . . Thermal 207 | . . . . . 207 Explosive . | . . . . . . Electromagnetic . | . . . . . . Impact . | . . . . . . Slashing . | . . . . . . Piercing . | . . . . . . Highest Corruption 5 | . . . . . 5 Average Corruption 4 | . . . . . 4 Corruption Purged . | . . . . . . Corruption Blocked . | . . . . . . Effects 10 | . . . . . 10 Message Errors 2 | . . . . . 2 Matter Fused 3 | . . . . . 3 Heat Flow Errors 1 | . . . . . 1 Energy Discharges 2 | . . . . . 2 Data Loss (minor) 1 | . . . . . 1 Data Loss (major) 1 | . . . . . 1 Overload Shots . | . . . . . . Overflow Damage . | . . . . . . Projectiles . | . . . . . . Explosions . | . . . . . . Melee . | . . . . . . Knockbacks . | . . . . . . Impact . | . . . . . . Kinetic . | . . . . . . Secondary . | . . . . . . Self-Inflicted Damage . | . . . . . . Shots . | . . . . . . Rammed . | . . . . . . Targets Rammed . | . . . . . . Kicked . | . . . . . . Crushed . | . . . . . . Highest Temperature 237 | . 25 8 . . 237 Average Temperature 22 | . 9 4 . . 38 Received Heat Transfer 513 | . 108 . . 54 351 Siege Activations . | . . . . . . Robots Corrupted . | . . . . . . Combat Hostiles . | . . . . . . Parts Fried . | . . . . . . Impact Corruptions . | . . . . . . Robots Melted . | . . . . . . Combat Hostiles . | . . . . . . Parts Melted . | . . . . . . Heat Transferred 333 | . . . . . 333 Parts Sabotaged . | . . . . . . Parts Stolen . | . . . . . . Parts Stripped . | . . . . . . Power Chain Reactions . | . . . . . . Alert | -11 -10 -10 -10 -9 -8 ------- Run | Yrd Mat Min Exi Min Mat Peak Influence 240 | . 240 143 . . 46 Initial 93 | . . 93 . . . Average 56 | . 99 140 . . 3 Maximum Alert Level 1 | . 1 . . . . Low Security (%) 96 | 100 85 100 . 100 100 Level 1 3 | . 14 . . . . Level 2 . | . . . . . . Level 3 . | . . . . . . Level 4 . | . . . . . . Level 5 . | . . . . . . High Security . | . . . . . . Max Security . | . . . . . . Squads Dispatched 1 | . . . . . 1 Investigation 1 | . . . . . 1 Extermination . | . . . . . . Reinforcement . | . . . . . . Assault . | . . . . . . Garrison . | . . . . . . Intercept . | . . . . . . Searches Triggered . | . . . . . . Construction Impeded . | . . . . . . Haulers Reinforced . | . . . . . . Active Scanning Responses . | . . . . . . Cargo Convoy Interrupts . | . . . . . . Stealth | -11 -10 -10 -10 -9 -8 --------- Run | Yrd Mat Min Exi Min Mat Distress Signals . | . . . . . . Communications Jammed . | . . . . . . Distress Signals . | . . . . . . Times Spotted 19 | . 8 3 . 3 5 Peak Tracking Total 4 | . 3 3 . 3 4 Tactical Retreats . | . . . . . . Traps | -11 -10 -10 -10 -9 -8 ------- Run | Yrd Mat Min Exi Min Mat Traps Triggered . | . . . . . . Indirectly . | . . . . . . Trap Hack Attempts . | . . . . . . Triggered . | . . . . . . Disarmed . | . . . . . . Reprogrammed . | . . . . . . Reused . | . . . . . . Traps Extracted . | . . . . . . Installed . | . . . . . . Triggered . | . . . . . . Machines | -11 -10 -10 -10 -9 -8 ---------- Run | Yrd Mat Min Exi Min Mat Machines Disabled . | . . . . . . Max in Single Turn . | . . . . . . Machines Repaired . | . . . . . . Machines Dismantled . | . . . . . . Machines Sabotaged . | . . . . . . Overloaded Fab Kills . | . . . . . . Hacking | -11 -10 -10 -10 -9 -8 --------- Run | Yrd Mat Min Exi Min Mat Machines Accessed 6 | . . 1 4 . 1 Terminals . | . . . . . . Fabricators . | . . . . . . Repair Stations . | . . . . . . Recycling Units 1 | . . . . . 1 Scanalyzers . | . . . . . . Garrison Access . | . . . . . . Total Hacks 53 | . . 1 49 . 3 Successful 53 | . . 1 49 . 3 Failed . | . . . . . . Catastrophic . | . . . . . . Database Lockouts . | . . . . . . Manual 3 | . . . 2 . 1 Terminals . | . . . . . . Fabricators . | . . . . . . Repair Stations . | . . . . . . Recycling Units 3 | . . . . . 3 Scanalyzers . | . . . . . . Garrison Access . | . . . . . . Terminal Hacks 50 | . . 1 49 . . Record 49 | . . . 49 . . Open Door 1 | . . 1 . . . Fabricator Hacks . | . . . . . . Repair Station Hacks . | . . . . . . Recycling Unit Hacks 2 | . . . . . 2 Recycle Component 1 | . . . . . 1 Process 1 | . . . . . 1 Scanalyzer . | . . . . . . Garrison Access Hacks . | . . . . . . Unauthorized Hacks 1 | . . . . . 1 Terminals . | . . . . . . Fabricators . | . . . . . . Repair Stations . | . . . . . . Recycling Units 1 | . . . . . 1 Monitor 1 | . . . . . 1 Scanalyzers . | . . . . . . Garrison Access . | . . . . . . Data Cores Recovered . | . . . . . . Used . | . . . . . . Hacking Detections 1 | . . . . . 1 Full Trace Events 1 | . . . . . 1 Feedback Events . | . . . . . . Feedback Blocked . | . . . . . . Robot Schematics Acquired . | . . . . . . Robots Built . | . . . . . . Authchips . | . . . . . . Time . | . . . . . . Total Robot Build Rating . | . . . . . . Part Schematics Acquired . | . . . . . . Parts Built . | . . . . . . Authchips . | . . . . . . Time . | . . . . . . Total Part Build Rating . | . . . . . . Parts Repaired . | . . . . . . Time . | . . . . . . Parts Recycled 1 | . . . . . 1 Recycled Matter 40 | . . . . . 40 Retrieved Matter . | . . . . . . Retrieved Components . | . . . . . . Parts Scanalyzed . | . . . . . . Part Schematics Acquired . | . . . . . . Parts Damaged . | . . . . . . Bothacking | -11 -10 -10 -10 -9 -8 ------------ Run | Yrd Mat Min Exi Min Mat Used RIF Installer . | . . . . . . Robots Hacked . | . . . . . . Non-combat . | . . . . . . Combat . | . . . . . . Robot Hacks Applied . | . . . . . . Relay Couplers Released . | . . . . . . Fabnet Peak Effective % . | . . . . . . Robots Rewired . | . . . . . . Allies Hacked . | . . . . . . Hacks Repelled . | . . . . . . Allies | -11 -10 -10 -10 -9 -8 -------- Run | Yrd Mat Min Exi Min Mat Total Allies . | . . . . . . Largest Group . | . . . . . . Highest-Rated Group . | . . . . . . Highest-Rated Ally . | . . . . . . Total Orders . | . . . . . . Ally Attacks . | . . . . . . Total Damage . | . . . . . . Kills . | . . . . . . Allies Corrupted . | . . . . . . Allies Melted . | . . . . . . Intel | -11 -10 -10 -10 -9 -8 ------- Run | Yrd Mat Min Exi Min Mat Robot Analysis Total . | . . . . . . Derelict Logs Recovered 2 | . . 1 . 1 . Drone Launches . | . . . . . . Drone Recoveries . | . . . . . . Exploration | -11 -10 -10 -10 -9 -8 ------------- Run | Yrd Mat Min Exi Min Mat Turns Passed 2389 | 45 310 326 1015 239 454 Spaces Moved 1261 | 34 190 219 529 126 163 Core 40 | 10 . . . 3 27 Treads . | . . . . . . Legs 1221 | 24 190 219 529 123 136 Wheels . | . . . . . . Hover . | . . . . . . Flight . | . . . . . . Fastest Speed 50 | 50 120 120 120 120 195 Average Speed 174 | 99 120 139 189 188 242 Slowest Speed 500 | 120 120 190 190 200 500 Overloaded Moves . | . . . . . . Propulsion Burnouts . | . . . . . . Robots Hopped . | . . . . . . Cave-ins Triggered . | . . . . . . Exploration Rate (%) 36 | 4 22 68 91 27 9 Regions Visited 5 Branch Regions 3 Pre-discovered Areas 1 | . . . 1 . . Known Exits Taken . | . . . . . . Unknown Exits Taken 5 | 1 1 1 1 1 . Scrap Searched 2 | . . 1 . 1 . Spaces Dug . | . . . . . . Terrain Destroyed 1 | . . . . . 1 Melee . | . . . . . . Projectile 1 | . . . . . 1 AOE . | . . . . . . Terrain Rammed . | . . . . . . Walls Destroyed . | . . . . . . Machines Disabled . | . . . . . . Actions | -11 -10 -10 -10 -9 -8 --------- Run | Yrd Mat Min Exi Min Mat Total 1391 | 45 233 233 542 128 210 Wait 19 | . . 1 . . 18 Move 1256 | 33 189 218 528 125 163 Hop . | . . . . . . Pick Up 31 | 6 7 3 7 1 7 Fast Attach . | . . . . . . Attach 20 | 6 . 1 4 1 8 Detach 2 | . . 1 1 . . Swap 10 | . 7 2 . . 1 Drop 12 | . 6 2 2 1 1 Fire 41 | . 24 5 . . 12 Melee . | . . . . . . Ram . | . . . . . . Kick . | . . . . . . Crush . | . . . . . . Escape Stasis . | . . . . . . Rewire . | . . . . . . Trap . | . . . . . . Miscellaneous . | . . . . . . Route ------- -11/Scrapyard -10/Materials -10/Mines -10/Exiles (discovered 2 exits: [*Min x2]) -9/Mines -8/Materials History --------- Turn | Location | Event 8 | -11/Scrapyard | Discovered new exit (range 15) 46 | -11/Scrapyard | Entered Materials 302 | -10/Materials | Build established: Mutant 311 | -10/Materials | Core integrity fell below 50% 331 | -10/Materials | Discovered new exit (range 6) 356 | -10/Materials | Entered Mines 407 | -10/Mines | Met a Derelict bent on vengeance 555 | -10/Mines | Found the Drone Emporium 562 | -10/Mines | Found Prototype Device 569 | -10/Mines | Identified Decoy Drone Bay 651 | -10/Mines | Learned Materials stockpile data 672 | -10/Mines | Deemed a non-threat by the Exiles lab entrance 674 | -10/Mines | Discovered new exit (range 5) 682 | -10/Mines | Entered Exiles 748 | -10/Exiles | Discovered new exit (range 15) 784 | -10/Exiles | Met 8R-AWN 822 | -10/Exiles | Met EX-HEX 898 | -10/Exiles | Met EX-DEC 917 | -10/Exiles | Learned location of Zion (-6) 994 | -10/Exiles | Visited The Gauntlet 1254 | -10/Exiles | Met EX-BIN 1301 | -10/Exiles | Aligned with FarCom system 1303 | -10/Exiles | Given EX-Vault access code 1421 | -10/Exiles | Opened EX-Vault 1439 | -10/Exiles | Found Prototype Energy Cannon 1441 | -10/Exiles | Identified Latent Energy Streamer 1443 | -10/Exiles | Found Prototype Device 1444 | -10/Exiles | Identified Trap Reconfigurator 1451 | -10/Exiles | Found Prototype Device 1453 | -10/Exiles | Identified Skeleton Box 1492 | -10/Exiles | Warned to stay clear of 0b10 Research branches 1676 | -10/Exiles | Discovered new exit (range 11) 1697 | -10/Exiles | Stole three prototypes: Latent Energy Streamer, Trap Reconfigurator, Skeleton Box 1697 | -10/Exiles | Entered Mines 1739 | -9/Mines | Discovered new exit (range 7) 1787 | -9/Mines | Learned Materials garrison access intel 1919 | -9/Mines | Core integrity fell below 20% 1936 | -9/Mines | Entered Materials 1936 | -8/Materials | Evolved 4 slots: Utility x4 1938 | -8/Materials | Loaded intel: 1 garrison access location 1965 | -8/Materials | Lost 4 parts (1p2n1w) 2390 | -8/Materials | Self-destructed Last Messages --------------- System corrupted: Matter fused (-6). G-47 Trooper destroyed. Acquired 56 matter. System corrupted: Matter fused (-9). Critical hit (Burn: +37). Acquired Aluminum Leg. M-28 Smith repairs G-47 Trooper. System corrupted: FCS attempts to trigger Ion Cannon. M-28 Smith repairs Aluminum Leg. Critical hit (Burn: +37). W,, IK